bitfinex/quotes_SOLUSD_20240825
["timestamp","ask_amount","ask_price","bid_price","bid_amount"]
[1724577473660,45.0,157.14,157.05,31.15085327]
[1724577474151,45.0,157.14,157.05,24.92125327]
[1724577474656,51.3638,157.14,157.05,24.92125327]
[1724577475049,45.0,157.14,157.07,24.92125327]
[1724577475253,45.0,157.14,157.08,1.27294839]
[1724577475748,45.0,157.14,157.07,24.92125327]
[1724577475963,45.0,157.15,157.07,24.92125327]
[1724577481275,51.3636,157.15,157.07,24.92125327]
[1724577481678,6.3641,157.13,157.03,15.1504]
[1724577481874,45.0,157.12,157.06,24.92125327]
[1724577482082,51.3637,157.15,157.06,24.92125327]
[1724577485890,45.0,157.15,157.06,24.92125327]
[1724577486057,47.10855612,157.16,157.06,24.92125327]
[1724577486367,45.0,157.16,157.06,24.92125327]
[1724577487172,6.3651,157.11,157.04,24.92125327]
[1724577487376,6.3651,157.11,157.03,15.1504]
[1724577487577,45.0,157.1,157.03,15.1504]
[1724577488800,45.0,157.11,157.04,26.19457746]
[1724577488978,45.0,157.11,157.05,1.27328824]
[1724577489966,51.365,157.11,157.04,24.92125327]
[1724577490879,6.3661,157.09,157.03,15.1504]
[1724577491098,45.0,157.08,157.03,15.1504]
[1724577491388,51.3663,157.08,157.0,24.92125327]
[1724577492072,6.3666,157.07,156.99,16.3636]
[1724577492273,24.92125327,157.1,156.99,16.3636]
[1724577492274,6.3674,157.05,156.99,16.3636]
[1724577492599,45.0,157.04,156.99,16.3636]
[1724577492779,51.367,157.06,156.99,16.3636]
[1724577494572,6.3679,157.04,156.99,16.3636]
[1724577494773,45.0,157.03,156.99,16.3636]
[1724577498285,45.0,157.04,156.99,16.3636]
[1724577498996,45.0,157.05,156.99,16.3636]
[1724577499805,9.9794455,157.04,156.95,22.88210415]
[1724577499975,45.0,157.03,156.95,16.2643]
[1724577500172,6.3681,157.04,156.95,16.2643]
[1724577500376,45.0,157.03,156.96,9.9794455]
[1724577501204,32.0619,157.11,156.96,9.9794455]
[1724577501205,45.0,157.04,156.98,9.9794455]
[1724577501614,45.0,157.04,157.0,9.9794455]
[1724577501775,6.3662,157.08,157.0,9.9794455]
[1724577501977,6.3667,157.07,157.0,9.9794455]
[1724577503075,45.0,157.06,157.0,9.9794455]
[1724577504701,45.0,157.06,156.97,2.30464336]
[1724577505008,45.0,157.06,156.99,9.9794455]
[1724577508105,47.12388826,157.06,156.99,9.9794455]
[1724577508879,2.12388826,157.06,156.99,9.9794455]
[1724577509087,45.0,157.07,156.99,9.9794455]
[1724577510911,45.0,157.07,157.0,16.2643]
[1724577512181,47.0793676,157.07,157.0,16.2643]
[1724577512380,47.0793676,157.07,157.01,9.9794455]
[1724577512894,9.9794455,157.13,157.03,9.9794455]
[1724577513287,6.3653,157.1,157.03,9.9794455]
[1724577514194,45.0,157.09,157.03,9.9794455]
[1724577515601,45.0,157.09,157.04,1.27343979]
[1724577515801,45.0,157.1,157.05,9.9794455]
[1724577516010,6.3646,157.12,157.05,9.9794455]
[1724577517109,2.12889285,157.14,157.06,16.2643]
[1724577517315,6.3641,157.13,157.06,16.2643]
[1724577518313,45.0,157.12,157.06,16.2643]
[1724577520620,51.3645,157.12,157.06,16.2643]
[1724577523421,45.0,157.12,157.06,16.2643]
[1724577523623,6.3661,157.08,157.02,16.1457]
[1724577523801,45.0,157.07,157.02,16.1457]
[1724577523995,51.3665,157.07,157.02,16.1457]
[1724577525498,54.9794455,157.07,157.02,16.1457]
[1724577525699,16.3468455,157.05,156.98,16.1457]
[1724577526027,45.0,157.07,156.98,16.1457]
[1724577526028,9.9794455,157.03,156.98,16.1457]
[1724577526230,45.0,157.02,156.98,16.1457]
[1724577526799,45.0,157.03,156.98,16.1457]
[1724577527230,6.3674,157.05,156.98,16.1457]
[1724577527231,45.0,157.04,156.98,16.1457]
[1724577531631,51.3678,157.04,156.98,16.1457]
[1724577532618,54.9794455,157.04,156.98,16.1457]
[1724577532849,9.9794455,157.02,156.94,16.1457]
[1724577533046,45.0,157.01,156.94,16.1457]
[1724577534319,6.3698,156.99,156.94,16.1457]
[1724577534527,45.0,156.98,156.94,16.1457]
[1724577535128,45.0,156.99,156.94,16.1457]
[1724577537431,47.06632204,156.99,156.94,16.1457]
[1724577537847,2.06632204,156.99,156.94,26.1251455]
[1724577538053,6.3689,157.02,156.94,26.1251455]
[1724577538229,2.12200835,157.0,156.94,26.1251455]
[1724577538746,6.3689,157.02,156.94,26.1251455]
[1724577539231,45.0,157.01,156.94,26.1251455]
[1724577539451,45.0,157.01,156.94,16.1457]
[1724577539780,51.369,157.01,156.94,16.1457]
[1724577539945,6.369,157.01,156.94,16.1457]
[1724577540269,45.0,157.0,156.94,16.1457]
[1724577541447,51.369,157.01,156.94,16.1457]
[1724577542956,45.0,157.01,156.94,16.1457]
[1724577543471,45.0,157.01,156.94,26.1251455]
[1724577543681,51.369,157.01,156.94,26.1251455]
[1724577544169,51.369,157.01,156.96,9.9794455]
[1724577544170,45.0,157.01,156.96,9.9794455]
[1724577545177,45.0,157.01,156.94,26.1251455]
[1724577545351,51.3686,157.02,156.94,26.1251455]
[1724577546570,51.3686,157.02,156.94,16.1457]
[1724577547155,6.369,157.01,156.94,16.1457]
[1724577547362,45.0,157.0,156.94,16.1457]
[1724577555656,45.0,157.0,156.95,9.9794455]
[1724577556193,45.0,157.0,156.94,16.1457]
[1724577556787,45.0,157.0,156.96,9.9794455]
[1724577557199,2.10197111,157.03,156.96,9.9794455]
[1724577557200,8.47017111,157.03,156.96,9.9794455]
[1724577557400,6.3682,157.03,156.96,9.9794455]
[1724577557767,2.07290813,157.05,156.96,9.9794455]
[1724577558132,2.07290813,157.05,156.9,6.6145545]
[1724577558133,6.3988,157.09,156.99,15.968]
[1724577558282,9.9794455,157.08,156.99,15.968]
[1724577559286,45.0,157.07,156.99,15.968]
[1724577559583,6.367,157.06,156.99,15.968]
[1724577559903,45.0,157.05,156.99,15.968]
[1724577563123,45.0,157.05,156.99,25.9474455]
[1724577563313,45.0,157.06,157.0,1.27375435]
[1724577563725,6.3662,157.08,156.99,25.9474455]
[1724577564031,6.3667,157.07,156.99,25.9474455]
[1724577564230,16.3461455,157.07,156.99,25.9474455]
[1724577565305,45.0,157.06,156.99,25.9474455]
[1724577567433,6.366,157.09,156.99,25.9474455]
[1724577567640,289.15016477,157.12,156.99,15.968]
[1724577567802,289.15016477,157.12,156.98,6.5272]
[1724577567803,6.365,157.11,157.03,9.9794455]
[1724577568127,9.9794455,157.1,157.04,6.3674]
[1724577568629,6.3658,157.09,157.04,6.3674]
[1724577569212,45.0,157.08,157.04,6.3674]
[1724577575025,45.0,157.08,157.05,6.3672]
[1724577575221,45.0,157.09,157.05,6.3672]
[1724577576310,9.9794455,157.12,157.06,6.3669]
[1724577576640,9.9794455,157.13,157.06,6.3669]
[1724577577526,45.0,157.12,157.03,17.90733667]
[1724577577851,6.3638,157.14,157.05,9.9794455]
[1724577578020,6.3638,157.14,157.09,6.3656]
[1724577578228,6.3642,157.13,157.08,6.3661]
[1724577579029,45.0,157.12,157.08,6.3661]
[1724577579753,51.3649,157.12,157.07,22.2823]
[1724577581823,51.3649,157.12,157.08,15.7396]
[1724577583448,51.3649,157.12,157.08,22.1057]
[1724577583648,45.0,157.12,157.09,6.3657]
[1724577586756,45.0,157.12,157.08,22.1057]
[1724577591034,45.0,157.12,157.1,6.3651]
[1724577594372,45.0,157.12,157.11,6.3649]
[1724577595572,22.3806,157.22,157.12,15.9112]
[1724577595748,6.3621,157.18,157.14,6.3637]
[1724577595952,6.362,157.19,157.14,6.3637]
[1724577596147,6.3626,157.17,157.12,22.2756]
[1724577596465,6.3626,157.17,157.09,16.2751455]
[1724577596466,9.9794455,157.14,157.09,22.2098]
[1724577596770,45.0,157.13,157.09,22.2098]
[1724577597354,45.0,157.13,157.09,15.9141]
[1724577598472,45.0,157.13,157.09,22.2797]
[1724577600866,51.3643,157.13,157.09,15.9141]
[1724577601284,51.3643,157.13,157.08,15.7396]
[1724577601285,9.9794455,157.12,157.08,15.7396]
[1724577601573,9.9794455,157.12,157.06,15.9171]
[1724577601574,45.0,157.11,157.06,15.9171]
[1724577602549,51.365,157.11,157.06,22.2837]
[1724577603068,45.0,157.11,157.07,6.3665]
[1724577604464,45.0,157.11,157.04,15.2525]
[1724577604465,9.9794455,157.08,157.04,15.2525]
[1724577604665,45.0,157.07,157.02,15.9205]
[1724577605470,45.0,157.07,157.03,6.3681]
[1724577607675,45.0,157.07,157.04,6.3676]
[1724577608575,47.13319984,157.07,157.04,6.3676]
[1724577608882,45.0,157.06,157.04,6.3676]
[1724577609063,45.0,157.08,157.04,6.3676]
[1724577609463,6.3653,157.1,157.05,6.367]
[1724577610864,45.0,157.09,157.05,6.367]
[1724577613563,45.0,157.09,157.05,5.368999]
[1724577616768,45.0,157.09,157.05,15.9184]
[1724577616980,2.12107813,157.1,157.07,6.3665]
[1724577616981,45.0,157.1,157.07,6.3665]
[1724577617482,16.3436455,157.13,157.08,6.3661]
[1724577618396,6.3654,157.1,157.05,37.5379]
[1724577618895,45.0,157.09,157.05,37.5379]
[1724577621769,45.0,157.09,157.06,6.3666]
[1724577621973,45.0,157.1,157.05,31.1709]
[1724577623199,45.0,157.1,157.07,6.3664]
[1724577623384,45.0,157.11,157.07,6.3664]
[1724577625497,45.0,157.11,157.05,37.5379]
[1724577625694,9.9794455,157.11,157.05,37.5379]
[1724577626085,45.0,157.1,157.05,37.5379]
[1724577626283,51.3654,157.1,157.05,37.5379]
[1724577629784,45.0,157.1,157.06,6.3667]
[1724577630083,9.9794455,157.14,157.05,41.1503455]
[1724577631183,45.0,157.13,157.05,41.1503455]
[1724577631492,9.9794455,157.15,157.07,15.9157]
[1724577632603,6.3641,157.14,157.09,6.3657]
[1724577632809,6.4782,157.2,157.09,9.9794455]
[1724577633113,6.3625,157.17,157.12,15.9113]
[1724577633314,6.3625,157.17,157.12,22.2755]
[1724577634507,16.3423455,157.17,157.11,21.6865]
[1724577634810,16.3423455,157.17,157.07,6.0697]
[1724577634811,13.01329422,157.24,157.18,6.3621]
[1724577635105,6.4782,157.26,157.18,6.3621]
[1724577635106,9.9794455,157.26,157.2,6.3612]
[1724577635476,16.3383455,157.26,157.2,6.3612]
[1724577636491,9.9794455,157.24,157.18,21.6837]
[1724577636686,45.0,157.23,157.18,21.6837]
[1724577636887,9.9794455,157.2,157.14,15.3219]
[1724577637095,45.0,157.19,157.14,15.3219]
[1724577637517,45.0,157.19,157.16,6.3628]
[1724577639908,45.0,157.19,157.17,6.3625]
[1724577646022,6.3596,157.25,157.18,15.9045]
[1724577647208,6.3596,157.25,157.2,6.3609]
[1724577648498,45.0,157.24,157.2,6.3609]
[1724577649101,45.0,157.25,157.21,6.3608]
[1724577651093,45.0,157.25,157.22,6.3604]
[1724577651418,6.3585,157.27,157.22,6.3604]
[1724577652604,45.0,157.26,157.22,6.3604]
[1724577654834,45.0,157.26,157.23,6.36]
[1724577655030,6.3573,157.3,157.25,6.3592]
[1724577655235,6.3572,157.3,157.23,15.8992]
[1724577655534,6.3572,157.3,157.23,17.17101475]
[1724577655841,6.3577,157.29,157.24,6.3596]
[1724577656520,45.0,157.28,157.24,6.3596]
[1724577657231,54.9794455,157.28,157.2,32.5393]
[1724577657437,9.9794455,157.24,157.2,32.5393]
[1724577657616,45.0,157.23,157.2,32.5393]
[1724577658528,45.0,157.23,157.2,38.9006]
[1724577659035,45.0,157.24,157.21,6.3608]
[1724577659239,45.0,157.25,157.21,6.3608]
[1724577659727,51.3593,157.25,157.2,38.9005]
[1724577662237,16.3391455,157.24,157.2,15.903]
[1724577662433,16.3399455,157.22,157.17,15.9062]
[1724577662937,45.0,157.25,157.12,6.3641]
[1724577662938,9.9794455,157.18,157.12,6.3641]
[1724577663140,16.3419455,157.18,157.13,6.3641]
[1724577663435,45.0,157.17,157.13,6.3641]
[1724577664040,6.3629,157.16,157.11,22.7096]
[1724577664220,45.0,157.15,157.11,22.7096]
[1724577668618,45.0,157.16,157.12,6.3645]
[1724577671348,45.0,157.16,157.13,6.3641]
[1724577671641,45.0,157.17,157.13,6.3641]
[1724577672258,45.0,157.17,157.12,6.3645]
[1724577672549,45.0,157.17,157.11,16.3447]
[1724577673836,9.9794455,157.14,157.09,6.3654]
[1724577674144,45.0,157.13,157.1,6.3653]
[1724577674733,45.0,157.14,157.1,6.3653]
[1724577679849,45.0,157.14,157.11,6.3649]
[1724577680047,8.47570431,157.16,157.11,6.3649]
[1724577680048,45.0,157.15,157.11,6.3649]
[1724577680563,2.11270431,157.16,157.12,6.3645]
[1724577680772,15.9042,157.2,157.12,6.3645]
[1724577680773,9.9794455,157.2,157.12,15.9113]
[1724577681063,12.09163654,157.2,157.12,32.3039]
[1724577681239,9.9794455,157.18,157.12,32.3039]
[1724577682280,45.0,157.17,157.12,32.3039]
[1724577682581,45.0,157.17,157.06,12.78246331]
[1724577682582,9.9794455,157.16,157.09,15.9141]
[1724577682792,45.0,157.15,157.09,15.9141]
[1724577683978,45.0,157.15,157.1,6.3649]
[1724577684294,45.0,157.15,157.11,6.3649]
[1724577684981,51.3634,157.15,157.1,6.3653]
[1724577685362,45.0,157.15,157.11,6.3648]
[1724577685967,45.0,157.15,157.12,6.3645]
[1724577686181,45.0,157.16,157.12,6.3645]
[1724577687259,6.3625,157.17,157.12,6.3645]
[1724577687589,31.7956,157.26,157.14,6.3636]
[1724577687590,6.362,157.19,157.14,6.3636]
[1724577688579,18.3452369,157.21,157.15,6.363]
[1724577688580,6.3613,157.21,157.15,6.363]
[1724577690197,51.3613,157.2,157.15,6.363]
[1724577692676,45.0,157.2,157.15,15.9074]
[1724577692861,16.3402455,157.22,157.15,15.9074]
[1724577692862,45.0,157.21,157.15,15.9074]
[1724577693058,45.0,157.21,157.17,6.3625]
[1724577694698,51.3609,157.21,157.16,6.3628]
[1724577697993,51.3609,157.21,157.15,15.9074]
[1724577697994,6.3613,157.2,157.15,15.9074]
[1724577698199,45.0,157.19,157.15,22.2706]
[1724577698402,51.3617,157.19,157.15,15.9074]
[1724577698693,45.0,157.19,157.13,16.3926]
[1724577699006,45.0,157.19,157.13,22.7564]
[1724577699007,16.3416455,157.18,157.13,22.7564]
[1724577699298,45.0,157.17,157.14,6.3637]
[1724577699675,45.0,157.17,157.13,22.7567]
[1724577700802,45.0,157.17,157.14,6.3637]
[1724577702801,45.0,157.17,157.15,6.3633]
[1724577704299,45.0,157.17,157.16,6.3629]
[1724577708331,45.0,157.17,157.16,7.95557123]
[1724577709914,45.0,157.17,157.16,6.3629]
[1724577710209,6.3603,157.23,157.18,6.3618]
[1724577712098,51.3605,157.22,157.17,6.3624]
[1724577713028,51.3605,157.22,157.18,1.59240427]
[1724577713223,51.3605,157.22,157.17,6.3624]
[1724577715610,53.4946314,157.22,157.17,6.3624]
[1724577716715,45.0,157.22,157.18,6.3621]
[1724577725541,51.3605,157.22,157.17,6.3625]
[1724577726311,51.3605,157.22,157.18,1.59239569]
[1724577726543,51.3605,157.22,157.18,6.362]
[1724577727834,45.0,157.22,157.18,6.362]
[1724577728162,45.0,157.22,157.19,1.59226623]
[1724577728331,45.0,157.22,157.18,6.362]
[1724577728528,45.0,157.22,157.19,1.59226609]
[1724577728735,45.0,157.22,157.18,6.362]
[1724577728949,45.0,157.22,157.19,1.59223769]
[1724577729164,45.0,157.22,157.18,6.362]
[1724577729371,45.0,157.22,157.19,1.59223769]
[1724577729665,45.0,157.22,157.18,6.362]
[1724577729868,45.0,157.22,157.19,1.59223769]
[1724577730155,45.0,157.22,157.18,6.362]
[1724577730364,45.0,157.22,157.2,6.3611]
[1724577730567,45.0,157.22,157.19,11.2518233]
[1724577731258,45.0,157.22,157.2,1.59222136]
[1724577731566,45.0,157.22,157.21,6.3609]
[1724577733775,2.1948043,157.29,157.24,6.3596]
[1724577733950,9.9794455,157.31,157.24,6.3596]
[1724577734963,6.3581,157.28,157.22,22.2603]
[1724577735262,45.0,157.27,157.23,6.36]
[1724577741069,45.0,157.27,157.24,6.3595]
[1724577741242,45.0,157.28,157.24,6.3595]
[1724577743859,45.0,157.28,157.25,6.3592]
[1724577744066,45.0,157.29,157.26,6.3585]
[1724577744378,6.3568,157.32,157.27,6.3584]
[1724577745895,6.3569,157.31,157.26,22.2553]
[1724577746663,45.0,157.3,157.26,22.2553]
[1724577748248,51.3573,157.3,157.26,15.8965]
[1724577754492,51.3573,157.3,157.26,22.2553]
[1724577755766,45.0,157.3,157.26,22.2553]
[1724577759264,45.0,157.3,157.27,6.3583]
[1724577759465,45.0,157.31,157.27,6.3583]
[1724577764193,6.3572,157.3,157.26,15.8965]
[1724577764492,45.0,157.29,157.26,22.2553]
[1724577764656,51.3569,157.31,157.26,22.2553]
[1724577767389,45.0,157.31,157.26,15.8965]
[1724577767588,45.0,157.31,157.29,15.8939]
[1724577767793,45.0,157.31,157.29,22.2512]
[1724577774689,45.0,157.3,157.29,22.2512]
[1724577778380,45.0,157.3,157.29,15.8939]
[1724577780004,45.0,157.3,157.28,22.6665]
[1724577780005,45.0,157.3,157.28,16.3085]
[1724577780177,22.311,157.36,157.29,6.3576]
[1724577780178,6.3556,157.35,157.29,6.3576]
[1724577780373,16.4027455,157.36,157.29,6.3576]
[1724577781596,6.3556,157.34,157.29,6.3576]
[1724577781789,45.0,157.33,157.29,6.3576]
[1724577782712,45.0,157.33,157.31,6.3568]
[1724577782880,6.3541,157.38,157.33,6.356]
[1724577783203,271.9601016,157.41,157.32,11.25057034]
[1724577783374,6.354,157.38,157.33,1.59090533]
[1724577783577,6.354,157.38,157.31,15.8915]
[1724577783775,6.354,157.38,157.32,1.59087822]
[1724577784089,6.354,157.38,157.33,1.59087822]
[1724577784290,265.6908016,157.41,157.34,18.75081188]
[1724577784496,265.6908016,157.41,157.34,27.13946753]
[1724577784497,0.8113561,157.41,157.34,27.13946753]
[1724577784696,0.8113561,157.41,157.38,6.3539]
[1724577785986,0.8113561,157.41,157.3,15.8929]
[1724577785987,9.9794455,157.39,157.3,15.8929]
[1724577786182,16.3340455,157.37,157.3,15.8929]
[1724577786782,45.0,157.36,157.3,15.8929]
[1724577787592,45.0,157.36,157.32,6.3564]
[1724577787986,45.0,157.36,157.3,22.2498]
[1724577788290,45.0,157.36,157.31,6.3568]
[1724577791909,22.9106561,157.41,157.33,15.8899]
[1724577792082,6.3532,157.4,157.35,6.3552]
[1724577793386,0.8113561,157.41,157.37,6.354]
[1724577793611,0.8113561,157.41,157.38,6.3536]
[1724577795309,0.8113561,157.41,157.37,22.2396]
[1724577795488,0.8113561,157.41,157.35,22.788]
[1724577795692,45.8113561,157.41,157.36,6.3548]
[1724577796189,45.8113561,157.41,157.33,15.8892]
[1724577796190,9.9794455,157.4,157.33,15.8892]
[1724577796391,6.3544,157.38,157.33,22.245]
[1724577796603,6.3541,157.38,157.33,22.2452]
[1724577796816,45.0,157.37,157.33,22.2452]
[1724577797319,6.3548,157.36,157.31,6.3565]
[1724577797489,45.0,157.35,157.32,6.3564]
[1724577797691,51.3544,157.37,157.32,6.3564]
[1724577798186,6.3553,157.35,157.29,15.8932]
[1724577798386,45.0,157.37,157.29,15.8932]
[1724577798387,61.3354455,157.34,157.29,15.8932]
[1724577798626,16.3354455,157.34,157.29,15.8932]
[1724577798804,45.0,157.33,157.29,15.8932]
[1724577799003,51.3561,157.33,157.27,6.3583]
[1724577801903,45.0,157.33,157.28,6.3579]
[1724577802111,45.0,157.33,157.29,6.3575]
[1724577803525,45.0,157.34,157.3,6.3572]
[1724577803704,45.0,157.35,157.31,6.3567]
[1724577804098,6.3545,157.37,157.32,6.3564]
[1724577804728,16.3334455,157.39,157.34,6.3556]
[1724577805299,17.0601016,157.41,157.36,6.3548]
[1724577805500,23.4130016,157.41,157.36,6.3548]
[1724577806623,13.4335561,157.41,157.36,6.3548]
[1724577806808,0.8113561,157.41,157.37,6.3544]
[1724577807901,6.3552,157.36,157.3,22.2495]
[1724577808109,6.3552,157.36,157.31,6.3568]
[1724577808310,45.0,157.35,157.31,6.3568]
[1724577809323,45.0,157.35,157.3,22.2495]
[1724577810805,51.3553,157.35,157.3,22.2495]
[1724577813336,45.0,157.35,157.31,6.3567]
[1724577813517,6.3548,157.36,157.31,6.3567]
[1724577814438,6.3553,157.35,157.3,22.2494]
[1724577814810,45.0,157.34,157.28,6.3579]
[1724577815015,24.83912939,157.34,157.27,37.5697]
[1724577815209,45.0,157.33,157.27,22.2546]
[1724577816435,6.3566,157.32,157.27,22.2546]
[1724577816610,45.0,157.31,157.27,22.2546]
[1724577819143,45.0,157.31,157.23,15.3151]
[1724577819316,24.83912939,157.3,157.23,31.2145]
[1724577819520,45.0,157.29,157.23,31.2145]
[1724577820220,6.3581,157.28,157.23,37.5745]
[1724577820419,45.0,157.27,157.19,15.9037]
[1724577820923,45.0,157.27,157.18,15.2627]
[1724577820924,24.83912939,157.24,157.18,15.2627]
[1724577821110,45.0,157.27,157.15,22.55653838]
[1724577821111,24.83912939,157.22,157.15,15.9075]
[1724577821314,45.0,157.21,157.15,15.9075]
[1724577821515,51.361,157.21,157.16,6.3629]
[1724577824523,45.0,157.21,157.17,6.3624]
[1724577825023,45.0,157.22,157.18,6.3621]
[1724577826541,45.0,157.22,157.19,6.3617]
[1724577826743,45.0,157.23,157.19,6.3617]
[1724577829417,51.3603,157.23,157.18,22.2672]
[1724577829644,31.19962939,157.22,157.18,15.9052]
[1724577829943,45.0,157.21,157.18,15.9052]
[1724577831641,45.0,157.21,157.18,22.2672]
[1724577832845,45.0,157.21,157.18,15.9052]
[1724577833335,2.15572337,157.27,157.2,6.3611]
[1724577833336,6.3595,157.25,157.2,6.3611]
[1724577834734,45.0,157.24,157.2,6.3611]
[1724577837051,45.0,157.24,157.21,15.9021]
[1724577837238,40.43332939,157.3,157.21,15.9021]
[1724577837934,6.3584,157.28,157.23,6.3597]
[1724577838132,254.9,157.32,157.24,1.27186101]
[1724577838334,6.3556,157.34,157.23,24.83912939]
[1724577838525,14.66478481,157.35,157.3,6.3571]
[1724577838951,12.4863,157.35,157.3,6.3571]
[1724577839628,12.4863,157.35,157.29,22.2516]
[1724577839831,12.4863,157.35,157.27,15.5422]
[1724577839832,6.3562,157.33,157.28,6.358]
[1724577840031,6.357,157.31,157.25,15.8972]
[1724577840225,6.357,157.31,157.25,22.2561]
[1724577840226,6.3573,157.3,157.25,22.2561]
[1724577840656,45.0,157.29,157.25,22.2561]
[1724577841338,45.0,157.3,157.25,15.8972]
[1724577842555,45.0,157.3,157.27,6.3581]
[1724577843135,45.0,157.3,157.28,6.358]
[1724577843329,45.0,157.3,157.29,6.3576]
[1724577843534,6.3549,157.36,157.3,6.3572]
[1724577843834,22.2486,157.38,157.3,15.8931]
[1724577844046,6.3548,157.37,157.3,22.2499]
[1724577844241,24.83912939,157.37,157.29,6.3576]
[1724577844765,6.3548,157.36,157.29,15.8932]
[1724577845058,15.8943,157.38,157.32,6.3563]
[1724577845059,6.354,157.38,157.32,6.3563]
[1724577845433,6.3939,157.39,157.33,6.356]
[1724577845434,12.7475,157.39,157.33,6.356]
[1724577845639,6.3536,157.39,157.33,6.356]
[1724577846761,25.65048549,157.41,157.35,6.3548]
[1724577846762,7.1642561,157.41,157.35,6.3548]
[1724577847664,6.3555,157.35,157.27,16.2238]
[1724577847857,24.83912939,157.37,157.27,16.2238]
[1724577848160,45.0,157.36,157.27,16.2238]
[1724577848958,6.356,157.33,157.27,22.5819]
[1724577849163,6.3573,157.3,157.23,16.2238]
[1724577849373,6.3939,157.35,157.23,22.5838]
[1724577849374,31.07475324,157.31,157.23,22.5838]
[1724577849542,6.3585,157.27,157.22,15.9003]
[1724577849865,45.0,157.26,157.22,15.9003]
[1724577850367,51.3589,157.26,157.22,15.9003]
[1724577850557,51.3589,157.26,157.21,6.3608]
[1724577850737,51.3589,157.26,157.2,6.3612]
[1724577850738,6.3593,157.25,157.2,6.3612]
[1724577850946,45.0,157.24,157.2,6.3612]
[1724577851961,45.0,157.25,157.2,6.3612]
[1724577852163,45.0,157.25,157.18,15.9044]
[1724577853669,6.3604,157.23,157.18,15.9044]
[1724577853845,45.0,157.22,157.18,15.9044]
[1724577857557,45.0,157.22,157.15,16.2238]
[1724577857753,31.07475324,157.21,157.15,16.2238]
[1724577858056,6.3613,157.2,157.15,22.5867]
[1724577858267,45.0,157.19,157.15,22.5867]
[1724577858654,45.0,157.2,157.15,22.5867]
[1724577858859,45.0,157.2,157.16,6.3629]
[1724577861171,45.0,157.2,157.12,6.6016]
[1724577861378,6.3624,157.18,157.12,6.3641]
[1724577861576,45.0,157.17,157.12,6.3641]
[1724577861879,76.07475324,157.17,157.1,15.9125]
[1724577862076,6.3633,157.16,157.1,15.9125]
[1724577862252,45.0,157.15,157.11,6.3649]
[1724577862757,45.0,157.16,157.11,6.3649]
[1724577863066,45.0,157.16,157.12,6.3645]
[1724577866171,51.363,157.16,157.11,6.3648]
[1724577866373,6.3633,157.15,157.1,15.9125]
[1724577866656,45.0,157.14,157.1,15.9125]
[1724577867584,45.0,157.14,157.1,22.2778]
[1724577870662,31.28549108,157.18,157.1,15.9125]
[1724577871292,261.0473,157.26,157.12,24.92299108]
[1724577871582,6.3606,157.22,157.17,22.2679]
[1724577872579,24.92299108,157.23,157.18,6.3619]
[1724577873291,31.28329108,157.23,157.18,6.3619]
[1724577873663,6.3608,157.22,157.17,15.9054]
[1724577874482,45.0,157.21,157.17,15.9054]
[1724577876765,45.0,157.21,157.14,22.2725]
[1724577876969,31.13082555,157.18,157.11,15.5534]
[1724577877274,45.0,157.17,157.11,15.5534]
[1724577877880,45.0,157.17,157.13,6.3639]
[1724577878085,45.0,157.18,157.11,15.5534]